bitfinex-derivatives/quotes_BTCF0:USTF0_20241025
["timestamp","ask_amount","ask_price","bid_price","bid_amount"]
[1729814401106,0.03756147,68238.0,68236.0,0.37019404]
[1729814401401,0.3216,68258.0,68236.0,0.97019404]
[1729814401606,0.0322,68255.0,68246.0,0.3608]
[1729814403102,0.0322,68255.0,68252.0,0.07323564]
[1729814403409,0.0322,68255.0,68251.0,0.07323564]
[1729814404700,0.0322,68255.0,68252.0,0.16717631]
[1729814404898,0.0322,68255.0,68252.0,0.07323564]
[1729814406007,0.0322,68255.0,68254.0,0.07323564]
[1729814406207,0.0322,68255.0,68254.0,0.09379026]
[1729814406597,0.3608,68270.0,68254.0,0.09379026]
[1729814406902,0.3608,68270.0,68252.0,0.3608]
[1729814406903,0.0326,68269.0,68262.0,0.07318356]
[1729814407112,0.0626,68269.0,68265.0,0.3608]
[1729814407309,0.0626,68269.0,68265.0,0.4339597]
[1729814407503,0.0626,68269.0,68268.0,0.09979932]
[1729814409209,0.0626,68269.0,68268.0,0.14361288]
[1729814409417,0.0626,68269.0,68268.0,0.09979932]
[1729814409807,0.0626,68269.0,68268.0,0.14361288]
[1729814410009,0.03,68269.0,68268.0,0.09979932]
[1729814410210,0.03,68269.0,68268.0,0.14361288]
[1729814410515,0.03,68269.0,68268.0,0.09979932]
[1729814410712,0.03,68269.0,68268.0,0.1435681]
[1729814411209,0.03,68269.0,68268.0,0.09366844]
[1729814411416,0.03,68269.0,68265.0,0.3608]
[1729814411718,0.0328,68268.0,68267.0,0.14355901]
[1729814412319,0.0328,68268.0,68267.0,0.09979932]
[1729814414617,0.0328,68268.0,68267.0,0.29651864]
[1729814414818,0.03,68269.0,68267.0,0.34027833]
[1729814415006,0.03,68269.0,68267.0,0.34025489]
[1729814415210,0.03,68269.0,68268.0,0.04373625]
[1729814415409,0.03,68269.0,68267.0,0.34025489]
[1729814416311,0.03,68269.0,68267.0,0.24045557]
[1729814416516,0.03,68269.0,68267.0,0.19671932]
[1729814416920,0.03,68269.0,68268.0,0.09688]
[1729814417415,0.03,68269.0,68267.0,0.09979932]
[1729814417920,0.03,68269.0,68268.0,0.09688]
[1729814418424,0.03,68269.0,68267.0,0.09979932]
[1729814418613,0.03,68269.0,68268.0,0.09688]
[1729814420623,0.033,68277.0,68268.0,0.09688]
[1729814420814,0.0302,68276.0,68275.0,0.09979932]
[1729814426412,0.0302,68276.0,68273.0,0.04989966]
[1729814426618,0.0302,68276.0,68275.0,0.04989966]
[1729814426813,0.0302,68276.0,68275.0,0.09979932]
[1729814427227,0.0302,68276.0,68275.0,0.19663932]
[1729814430725,0.0302,68276.0,68275.0,0.26990532]
[1729814432624,0.0302,68276.0,68275.0,0.63070532]
[1729814433616,0.3608,68290.0,68275.0,0.65723864]
[1729814433821,0.3608,68290.0,68289.0,0.09979932]
[1729814434022,0.3608,68290.0,68286.0,0.04989966]
[1729814434225,0.04989966,68289.0,68286.0,0.04989966]
[1729814434433,0.3608,68290.0,68288.0,0.09979932]
[1729814435230,0.3608,68290.0,68288.0,0.17305032]
[1729814435427,0.3608,68290.0,68289.0,0.073251]
[1729814438040,0.04989966,68292.0,68289.0,0.073251]
[1729814438238,0.04989966,68290.0,68289.0,0.073251]
[1729814440425,0.04989966,68291.0,68288.0,0.04989966]
[1729814440629,0.04989966,68291.0,68290.0,0.07325]
[1729814441432,0.4252,68293.0,68291.0,0.073248]
[1729814441740,0.4242,68293.0,68291.0,0.073248]
[1729814441929,0.4242,68293.0,68292.0,0.04989966]
[1729814442129,0.4242,68293.0,68292.0,0.17304632]
[1729814442330,0.4242,68293.0,68292.0,0.22294598]
[1729814442528,0.4242,68293.0,68292.0,0.17304632]
[1729814443135,0.3941,68293.0,68292.0,0.17304632]
[1729814443340,0.3608,68293.0,68292.0,0.17304632]
[1729814443638,0.0303,68300.0,68292.0,0.09979932]
[1729814443838,0.0303,68300.0,68299.0,0.09979932]
[1729814446046,0.0327,68303.0,68300.0,0.073239]
[1729814446349,0.0327,68303.0,68299.0,0.09979932]
[1729814446644,0.0327,68303.0,68302.0,0.17303632]
[1729814449341,0.073237,68302.0,68293.0,0.04378857]
[1729814449551,0.073242,68298.0,68294.0,0.09716]
[1729814449738,0.09979932,68296.0,68294.0,0.09716]
[1729814450043,0.0324,68297.0,68295.0,0.04989966]
[1729814450243,0.0324,68297.0,68296.0,0.04989966]
[1729814452153,0.42041632,68302.0,68296.0,0.04989966]
[1729814452354,0.49534615,68302.0,68295.0,0.15201966]
[1729814452548,0.49534615,68302.0,68294.0,0.170405]
[1729814452749,0.49534615,68302.0,68297.0,0.15201966]
[1729814454251,0.42210915,68302.0,68298.0,0.09716]
[1729814454450,0.34609932,68302.0,68298.0,0.09716]
[1729814455561,0.34609932,68302.0,68300.0,0.07600983]
[1729814455760,0.0641,68303.0,68301.0,0.073238]
[1729814456454,0.0641,68303.0,68298.0,0.09716]
[1729814456647,0.07600983,68302.0,68298.0,0.09716]
[1729814457243,0.07600983,68302.0,68299.0,0.07324]
[1729814458349,0.07600983,68302.0,68298.0,0.09716]
[1729814458655,0.07600983,68302.0,68300.0,0.073239]
[1729814460364,0.0641,68303.0,68298.0,0.09716]
[1729814460562,0.0641,68303.0,68302.0,0.073237]
[1729814462856,0.0327,68303.0,68302.0,0.073237]
[1729814465758,0.0319,68312.0,68308.0,0.073229]
[1729814465963,0.0304,68311.0,68309.0,0.073229]
[1729814466165,0.0304,68311.0,68310.0,0.073228]
[1729814467760,0.0304,68311.0,68310.0,0.14923783]
[1729814468066,0.0304,68311.0,68310.0,0.22524766]
[1729814469166,0.0304,68311.0,68310.0,0.073228]
[1729814470367,0.0304,68311.0,68310.0,0.22524766]
[1729814470568,0.0304,68311.0,68310.0,0.22359666]
[1729814472275,0.0304,68311.0,68310.0,0.17131768]
[1729814476581,0.0304,68311.0,68310.0,0.21508368]
[1729814477373,0.0304,68311.0,68310.0,0.17131768]
[1729814481991,0.3608,68313.0,68310.0,0.17131768]
[1729814481992,0.3608,68313.0,68312.0,0.073226]
[1729814482682,0.3608,68313.0,68312.0,0.17296668]
[1729814482979,0.3608,68313.0,68312.0,0.073226]
[1729814484784,0.10472,68318.0,68314.0,0.073223]
[1729814484985,0.10472,68318.0,68317.0,0.09974068]
[1729814485989,0.10472,68318.0,68317.0,0.17296168]
[1729814494495,0.0315,68318.0,68317.0,0.17296168]
[1729814494893,0.0315,68318.0,68317.0,0.26980168]
[1729814495193,0.0315,68318.0,68317.0,0.21993134]
[1729814495389,0.0315,68318.0,68317.0,0.26980168]
[1729814498890,0.0315,68318.0,68317.0,0.31359467]
[1729814499097,0.07321,68327.0,68317.0,0.19658068]
[1729814499298,0.13941,68327.0,68326.0,0.09974068]
[1729814499793,0.0662,68327.0,68324.0,0.073213]
[1729814499994,0.073212,68326.0,68325.0,0.09974068]
[1729814500298,0.12308234,68325.0,68324.0,0.170053]
[1729814500794,0.073212,68325.0,68324.0,0.170053]
[1729814500990,0.073212,68325.0,68324.0,0.26979368]
[1729814502290,1.16216234,68325.0,68312.0,0.05835467]
[1729814502595,1.16216234,68325.0,68300.0,0.44833201]
[1729814502596,0.073229,68309.0,68308.0,0.05835467]
[1729814502790,0.12309934,68309.0,68308.0,0.04987034]
[1729814502989,0.12309934,68309.0,68300.0,0.05835467]
[1729814502990,0.434029,68309.0,68300.0,0.05835467]
[1729814503197,0.04987034,68304.0,68301.0,0.09684]
[1729814503495,0.073237,68302.0,68301.0,0.09684]
[1729814504198,0.073239,68300.0,68299.0,0.09974068]
[1729814504400,0.073239,68300.0,68299.0,0.19658068]
[1729814505299,0.073235,68304.0,68299.0,0.19658068]
[1729814505499,0.073235,68304.0,68303.0,0.09974068]
[1729814506002,0.073235,68304.0,68303.0,0.17297668]
[1729814506499,0.0097599,68309.0,68303.0,0.09974068]
[1729814506697,0.07323,68309.0,68308.0,0.09974068]
[1729814508895,0.42106644,68310.0,68299.0,0.09684]
[1729814509100,0.073234,68305.0,68303.0,0.04987034]
[1729814509403,0.073234,68305.0,68304.0,0.073235]
[1729814510906,0.073234,68305.0,68303.0,0.04987034]
[1729814510907,0.04987034,68306.0,68305.0,0.073234]
[1729814511095,0.12310234,68306.0,68305.0,0.073234]
[1729814511802,0.073232,68306.0,68305.0,0.17297468]
[1729814517206,0.3608,68308.0,68307.0,0.073231]
[1729814523203,0.43403,68308.0,68307.0,0.073231]
[1729814523608,0.48390034,68308.0,68307.0,0.073231]
[1729814525814,0.12310034,68308.0,68307.0,0.073231]
[1729814526807,0.12310034,68308.0,68307.0,0.07269654]
[1729814527910,0.07323,68308.0,68307.0,0.07269654]
[1729814528310,0.07323,68308.0,68307.0,0.12256688]
[1729814528504,0.07323,68308.0,68307.0,0.17243722]
[1729814528915,0.3701161,68310.0,68309.0,0.073229]
[1729814529317,0.4433441,68310.0,68309.0,0.073229]
[1729814529911,0.41998644,68310.0,68300.0,0.0093185]
[1729814530217,0.073237,68303.0,68302.0,0.073237]
[1729814530717,0.3618,68306.0,68305.0,0.073234]
[1729814530916,0.3618,68306.0,68305.0,0.12310434]
[1729814530917,0.3608,68306.0,68305.0,0.12310434]
[1729814531110,0.3608,68306.0,68305.0,0.073234]
[1729814532105,0.073232,68307.0,68305.0,0.073234]
[1729814532318,0.41067034,68308.0,68304.0,0.09974068]
[1729814532518,0.073235,68304.0,68303.0,0.15697019]
[1729814532713,0.12310534,68304.0,68302.0,0.05841019]
[1729814533024,0.12310534,68304.0,68302.0,0.09856]
[1729814533322,0.12310534,68304.0,68302.0,0.171796]
[1729814533516,0.073236,68303.0,68302.0,0.171796]
[1729814534318,0.04987034,68304.0,68302.0,0.171796]
[1729814535120,0.12310234,68307.0,68302.0,0.171796]
[1729814535417,0.073232,68307.0,68304.0,0.17297468]
[1729814536114,0.073232,68307.0,68304.0,0.09974068]
[1729814536422,0.073232,68307.0,68305.0,0.073233]
[1729814537023,0.12310234,68307.0,68305.0,0.073233]
[1729814537320,0.04987034,68306.0,68305.0,0.073233]
[1729814538220,0.12310234,68306.0,68305.0,0.073233]
[1729814539917,0.073234,68305.0,68303.0,0.09916]
[1729814540112,0.04987034,68304.0,68303.0,0.172395]
[1729814541518,0.04987034,68304.0,68303.0,0.073235]
[1729814544916,0.04987034,68304.0,68302.0,0.09916]
[1729814545131,0.073236,68303.0,68302.0,0.172396]
[1729814545624,0.04987034,68304.0,68303.0,0.073236]
[1729814546525,0.073238,68301.0,68299.0,0.05841019]
[1729814546729,0.073238,68301.0,68298.0,0.05841019]
[1729814546730,0.04987034,68299.0,68298.0,0.05841019]
[1729814546927,0.04987034,68299.0,68295.0,0.05841019]
[1729814547221,0.12311334,68296.0,68295.0,0.05841019]
[1729814547422,0.12311434,68295.0,68294.0,0.05841019]
[1729814547629,0.12311434,68295.0,68294.0,0.073245]
[1729814547818,0.07324,68300.0,68293.0,0.10828053]
[1729814548015,0.04987034,68301.0,68300.0,0.073239]
[1729814548215,0.073235,68304.0,68297.0,0.09974068]
[1729814548421,0.0093161,68310.0,68303.0,0.04987034]
[1729814548620,0.12310134,68308.0,68306.0,0.073232]
[1729814548827,0.41067034,68307.0,68306.0,0.073232]
[1729814549018,0.3608,68307.0,68306.0,0.073232]
[1729814549519,0.41067034,68307.0,68306.0,0.073232]
[1729814550524,0.3608,68307.0,68306.0,0.12310234]
[1729814550730,0.3608,68320.0,68306.0,0.09974068]
[1729814550922,0.3608,68320.0,68304.0,0.0627]
[1729814550923,0.073222,68316.0,68312.0,0.17296668]
[1729814551232,0.12309234,68316.0,68312.0,0.17296668]
[1729814551427,0.00937706,68316.0,68312.0,0.17296668]
[1729814551632,0.434018,68320.0,68312.0,0.17296668]
[1729814551633,0.3608,68320.0,68312.0,0.17296668]
[1729814551933,0.04987034,68317.0,68312.0,0.17296668]
[1729814552518,0.04987034,68317.0,68316.0,0.073222]
[1729814553229,0.07322,68318.0,68312.0,0.09974068]
[1729814553419,0.07322,68318.0,68311.0,0.0319]
[1729814553420,0.00927206,68318.0,68317.0,0.12309134]
[1729814553619,0.3608,68320.0,68317.0,0.09974068]
[1729814553825,0.41067034,68320.0,68319.0,0.073219]
[1729814556731,0.46054068,68320.0,68314.0,0.09912]
[1729814556926,0.073225,68313.0,68312.0,0.09912]
[1729814557125,0.073225,68313.0,68301.0,0.096]
[1729814557126,0.073231,68307.0,68305.0,0.073234]
[1729814557429,0.09974068,68306.0,68305.0,0.073234]
[1729814557625,0.09974068,68306.0,68299.0,0.05841019]
[1729814557626,0.04987034,68305.0,68299.0,0.05841019]
[1729814557830,0.073241,68298.0,68295.0,0.49245419]
[1729814558133,0.04987034,68296.0,68295.0,0.434044]
[1729814558529,0.09974068,68296.0,68295.0,0.434044]
[1729814558931,0.09974068,68296.0,68295.0,0.533164]
[1729814560328,0.07601544,68296.0,68295.0,0.533164]
[1729814560528,0.15203088,68296.0,68295.0,0.3608]
[1729814560836,0.22527388,68296.0,68295.0,0.3608]
[1729814562129,0.073247,68292.0,68291.0,0.05841019]
[1729814562330,0.51006244,68292.0,68291.0,0.05841019]
[1729814565136,0.14926444,68291.0,68289.0,0.07325]
[1729814565434,0.07325,68290.0,68289.0,0.07325]
[1729814569541,0.07601544,68291.0,68282.0,0.45996]
[1729814569742,0.07601544,68286.0,68282.0,0.45996]
[1729814570040,0.07601544,68286.0,68285.0,0.073255]
[1729814572438,0.073249,68291.0,68283.0,0.07601544]
[1729814572832,0.073249,68291.0,68284.0,0.073256]
[1729814572833,0.07601544,68289.0,68284.0,0.073256]
[1729814573037,0.07601544,68289.0,68288.0,0.073252]
[1729814580354,0.04989034,68289.0,68288.0,0.073252]
[1729814580647,0.12314134,68289.0,68288.0,0.073252]
[1729814582850,0.17303168,68289.0,68288.0,0.073252]
[1729814583252,0.12314134,68289.0,68288.0,0.073252]
[1729814583441,0.05939068,68292.0,68291.0,0.073249]
[1729814585142,0.48493734,68293.0,68291.0,0.073249]
[1729814585143,0.001,68293.0,68292.0,0.073247]
[1729814585352,0.073236,68303.0,68302.0,0.073235]
[1729814586649,0.08276634,68306.0,68305.0,0.073234]
[1729814586842,0.073232,68306.0,68305.0,0.073234]
[1729814587750,0.3608,68307.0,68306.0,0.073232]
[1729814587948,0.434031,68307.0,68306.0,0.073232]
[1729814588349,0.44351608,68307.0,68306.0,0.073232]
[1729814589451,0.08271608,68307.0,68306.0,0.073232]
[1729814590655,0.00948508,68307.0,68306.0,0.073232]
[1729814590856,0.15200914,68312.0,68301.0,0.60900914]
[1729814591051,0.16124514,68312.0,68308.0,0.073229]
[1729814591353,0.073229,68309.0,68308.0,0.073229]
[1729814591949,0.16124514,68312.0,68311.0,0.073227]
[1729814592145,0.073225,68313.0,68308.0,0.15200914]
[1729814592344,0.073225,68313.0,68312.0,0.073226]
[1729814592654,0.3608,68315.0,68314.0,0.073224]
[1729814592855,0.37012408,68315.0,68314.0,0.073224]
[1729814593747,0.44334708,68315.0,68314.0,0.073224]
[1729814596653,0.08254708,68315.0,68314.0,0.073224]
[1729814597967,0.00932408,68315.0,68305.0,0.51280914]
[1729814598149,0.3618,68316.0,68305.0,0.43680457]
[1729814598351,0.14923657,68307.0,68306.0,0.0986]
[1729814598560,0.14923657,68307.0,68306.0,0.171832]
[1729814598760,0.073232,68307.0,68306.0,0.171832]
[1729814599056,0.073232,68307.0,68306.0,0.073232]
[1729814599253,0.073232,68307.0,68306.0,0.171832]
[1729814599659,0.073232,68307.0,68306.0,0.073232]
[1729814599865,0.073232,68307.0,68306.0,0.171832]
[1729814602166,0.073228,68310.0,68309.0,0.073229]
[1729814602863,0.073234,68305.0,68303.0,0.073235]
[1729814603156,0.14923957,68304.0,68303.0,0.073235]
[1729814603665,0.073235,68304.0,68303.0,0.073235]
[1729814604164,0.3608,68307.0,68306.0,0.073232]
[1729814606163,0.073226,68313.0,68312.0,0.073226]
[1729814606362,0.073227,68311.0,68310.0,0.073228]
[1729814609063,0.00938649,68313.0,68309.0,0.073229]
[1729814609263,0.073225,68313.0,68312.0,0.073226]
[1729814609563,0.3608,68316.0,68312.0,0.04987286]
[1729814609765,0.37047345,68316.0,68315.0,0.073223]
[1729814609966,0.3608,68316.0,68315.0,0.073223]
[1729814610766,0.3608,68316.0,68315.0,0.17296872]
[1729814611261,0.434022,68316.0,68315.0,0.17296872]
[1729814612265,0.434022,68316.0,68315.0,0.073223]
[1729814613567,0.00936687,68317.0,68316.0,0.073222]
[1729814613769,0.3608,68319.0,68312.0,0.1829764]
[1729814613973,0.07322,68318.0,68317.0,0.07322]
[1729814619361,0.37049548,68319.0,68312.0,0.1829764]
[1729814619675,0.37049548,68319.0,68318.0,0.07322]
[1729814619973,0.44371448,68319.0,68318.0,0.07322]
[1729814622576,0.37049548,68319.0,68318.0,0.07322]
[1729814626276,0.3608,68327.0,68326.0,0.073211]
[1729814626472,0.073207,68330.0,68326.0,0.1519764]
[1729814626674,0.434004,68333.0,68332.0,0.073205]
[1729814626866,0.073207,68330.0,68325.0,0.0986]
[1729814627181,0.073207,68330.0,68329.0,0.073208]
[1729814627778,0.073207,68330.0,68320.0,0.073217]
[1729814627779,0.073217,68321.0,68320.0,0.073217]
[1729814628973,0.3608,68322.0,68321.0,0.073216]
[1729814632085,0.07321,68327.0,68320.0,0.1519764]
[1729814632276,0.07321,68327.0,68319.0,0.14180171]
[1729814632277,0.07321,68327.0,68326.0,0.073211]
[1729814632472,0.12307285,68327.0,68326.0,0.073211]
[1729814633176,0.3608,68330.0,68326.0,0.1729367]
[1729814633383,0.434007,68330.0,68329.0,0.073208]
[1729814635276,0.3608,68330.0,68329.0,0.073208]
[1729814635480,0.3608,68330.0,68329.0,0.12307085]
[1729814637679,0.073205,68332.0,68331.0,0.073206]
[1729814638074,0.12306785,68332.0,68331.0,0.073206]
[1729814641483,0.073209,68328.0,68327.0,0.07321]
[1729814641684,0.12307185,68328.0,68327.0,0.07321]
[1729814642284,0.073214,68324.0,68323.0,0.073214]
[1729814642586,0.48387685,68324.0,68323.0,0.073214]
[1729814644388,0.51000159,68324.0,68323.0,0.073214]
[1729814646690,0.58598918,68324.0,68323.0,0.073214]
[1729814648583,0.58598918,68324.0,68317.0,0.04384171]
[1729814648584,0.51277518,68324.0,68317.0,0.04384171]
[1729814648783,0.14920759,68319.0,68318.0,0.07322]
[1729814651092,0.22519518,68319.0,68318.0,0.07322]
[1729814652390,0.23451534,68319.0,68318.0,0.07322]
[1729814661993,0.073223,68315.0,68313.0,0.09696]
[1729814662194,0.15197518,68315.0,68310.0,0.07384171]
[1729814662392,0.073225,68313.0,68312.0,0.073226]
[1729814663195,0.14921259,68313.0,68312.0,0.073226]
[1729814664299,0.073227,68311.0,68310.0,0.103228]
[1729814666408,0.073227,68311.0,68310.0,0.073228]
[1729814666409,0.12310056,68311.0,68310.0,0.073228]
[1729814666711,0.07323,68308.0,68307.0,0.13006]
[1729814666905,0.12310356,68308.0,68307.0,0.13006]
[1729814667100,0.12310356,68308.0,68307.0,0.203291]
[1729814667400,0.12310356,68308.0,68307.0,0.106331]
[1729814669207,0.13242263,68308.0,68307.0,0.106331]
[1729814670310,0.10906619,68308.0,68303.0,0.11707771]
[1729814670518,0.10906619,68308.0,68301.0,0.032]
[1729814670519,0.04987356,68303.0,68301.0,0.032]
[1729814670810,0.073237,68302.0,68301.0,0.073237]
[1729814672008,0.073239,68300.0,68298.0,0.00219605]
[1729814672204,0.12311256,68300.0,68298.0,0.00219605]
[1729814672409,0.12311356,68299.0,68298.0,0.00219605]
[1729814673814,0.48391356,68299.0,68298.0,0.00219605]
[1729814675102,0.53378712,68299.0,68298.0,0.00219605]
[1729814676424,0.57624277,68299.0,68298.0,0.00219605]
[1729814676711,0.073247,68292.0,68291.0,0.073248]
[1729814676923,0.12312056,68292.0,68291.0,0.073248]
[1729814678111,0.073252,68288.0,68287.0,0.105352]
[1729814678313,0.073252,68288.0,68282.0,0.04385674]
[1729814678314,0.073258,68283.0,68282.0,0.073257]
[1729814678521,0.12313156,68283.0,68282.0,0.073257]
[1729814678918,0.073258,68283.0,68282.0,0.073257]
[1729814679224,0.09974712,68288.0,68283.0,0.073257]
[1729814679523,0.09974712,68288.0,68287.0,0.073253]
[1729814681134,0.04987356,68288.0,68287.0,0.073253]
[1729814681322,0.07325,68290.0,68289.0,0.073251]
[1729814681523,0.12312356,68290.0,68289.0,0.073251]
[1729814682228,0.37042101,68292.0,68289.0,0.04987356]
[1729814682533,0.04987356,68291.0,68290.0,0.07325]
[1729814685220,0.12312256,68291.0,68290.0,0.07325]
[1729814685936,0.073251,68289.0,68288.0,0.0301]
[1729814686637,0.073251,68289.0,68288.0,0.103352]
[1729814688236,0.073251,68289.0,68285.0,0.073255]
[1729814688237,0.073254,68286.0,68285.0,0.073255]
[1729814688437,0.12312756,68286.0,68285.0,0.073255]
[1729814691934,0.04987356,68286.0,68285.0,0.073255]
[1729814692240,0.04987356,68286.0,68285.0,0.434055]
[1729814694142,0.00962101,68292.0,68288.0,0.073251]
[1729814694342,0.12312456,68289.0,68288.0,0.073251]
[1729814696933,0.04987356,68289.0,68288.0,0.073251]
[1729814698248,0.04987356,68290.0,68288.0,0.12312456]
[1729814698439,0.12311456,68298.0,68296.0,0.073242]
[1729814698637,0.073242,68297.0,68296.0,0.073242]
[1729814699141,0.073246,68294.0,68292.0,0.104847]
[1729814699441,0.12311956,68293.0,68292.0,0.0316]
[1729814700642,0.17299312,68293.0,68292.0,0.0316]
[1729814702234,0.17299312,68293.0,68292.0,0.07545674]
[1729814702439,0.04987356,68293.0,68292.0,0.07545674]
[1729814702642,0.435114,68305.0,68292.0,0.44227356]
[1729814702643,0.073242,68297.0,68292.0,0.44227356]
[1729814702952,0.073242,68297.0,68296.0,0.04392228]
[1729814703351,0.073242,68297.0,68296.0,0.04390831]
[1729814703550,0.12311556,68297.0,68296.0,0.04390831]
[1729814704251,0.04987356,68300.0,68296.0,0.04987356]
[1729814704448,0.073239,68300.0,68299.0,0.09974712]
[1729814704749,0.04987356,68301.0,68297.0,0.04390831]
[1729814704947,0.12311456,68298.0,68297.0,0.04390831]
[1729814705346,0.12311456,68298.0,68296.0,0.21689843]
[1729814705653,0.073242,68297.0,68296.0,0.04390831]
[1729814706147,0.073242,68297.0,68295.0,0.09696]
[1729814706461,0.073243,68296.0,68295.0,0.09696]
[1729814707154,0.3608,68305.0,68295.0,0.09696]
[1729814707355,0.04987356,68303.0,68300.0,0.09974712]
[1729814707747,0.073237,68302.0,68301.0,0.0635]
[1729814709152,0.12311056,68302.0,68301.0,0.0635]
[1729814709453,0.12311056,68302.0,68301.0,0.09696]
[1729814709840,0.073245,68295.0,68293.0,0.11711532]
[1729814710042,0.12311856,68295.0,68294.0,0.09696]
[1729814710455,0.12311856,68295.0,68294.0,0.170205]
[1729814710959,0.12311856,68295.0,68293.0,0.04386932]
[1729814710960,0.12311856,68294.0,68293.0,0.04386932]
[1729814711251,0.12311856,68294.0,68293.0,0.09696]
[1729814711458,0.073246,68293.0,68292.0,0.36156]
[1729814711753,0.07325,68290.0,68289.0,0.04386932]
[1729814711954,0.07325,68290.0,68287.0,0.073252]
[1729814711955,0.04987356,68289.0,68287.0,0.04386932]
[1729814712155,0.04987356,68289.0,68288.0,0.09696]
[1729814712355,0.073256,68284.0,68283.0,0.11714163]
[1729814712650,0.12312956,68284.0,68283.0,0.21410163]
[1729814713060,0.12312956,68284.0,68283.0,0.11714163]
[1729814713353,0.12312956,68284.0,68283.0,0.09696]
[1729814713548,0.12313056,68283.0,68282.0,0.04388463]
[1729814713745,0.12313056,68283.0,68282.0,0.14084463]
[1729814713991,0.12313056,68283.0,68282.0,0.21410263]
[1729814715549,0.12313056,68283.0,68282.0,0.09696]
[1729814717952,0.073258,68282.0,68281.0,0.073259]
[1729814721458,0.04987356,68281.0,68279.0,0.04388826]
[1729814721655,0.04987356,68281.0,68265.0,0.00219705]
[1729814721656,0.12313456,68279.0,68270.0,0.04388826]
[1729814721858,0.04987356,68270.0,68269.0,0.073272]
[1729814722059,0.09974712,68270.0,68269.0,0.073272]
[1729814724065,0.17301812,68270.0,68269.0,0.073272]
[1729814724265,0.073274,68268.0,68266.0,0.073275]
[1729814724452,0.04987356,68267.0,68266.0,0.073275]
[1729814729965,0.12314756,68267.0,68266.0,0.073275]
[1729814730168,0.17302112,68267.0,68266.0,0.073275]
[1729814730559,0.17302212,68266.0,68265.0,0.00219705]
[1729814730765,0.53382212,68266.0,68259.0,0.073283]
[1729814731068,0.04987356,68259.0,68250.0,0.3923]
[1729814731261,0.073286,68256.0,68255.0,0.073285]
[1729814731864,0.073286,68256.0,68250.0,0.3923]
[1729814731865,0.073288,68254.0,68252.0,0.07329]
[1729814732167,0.17303612,68253.0,68252.0,0.07329]
[1729814732468,0.073291,68251.0,68250.0,0.3608]
[1729814732669,0.09974712,68252.0,68249.0,0.073293]
[1729814732870,0.12316656,68250.0,68249.0,0.073293]
[1729814733070,0.04987356,68249.0,68241.0,0.00219777]
[1729814733271,0.04987356,68250.0,68241.0,0.00219777]
[1729814733272,0.04987356,68242.0,68241.0,0.07549977]
[1729814734170,0.12317456,68242.0,68241.0,0.07549977]
[1729814734362,0.53384812,68242.0,68241.0,0.00219777]
[1729814736378,0.51018227,68242.0,68241.0,0.00219777]
[1729814737767,0.58626354,68242.0,68241.0,0.00219777]
[1729814739976,0.58626354,68242.0,68236.0,0.3608]
[1729814739977,0.43688127,68242.0,68236.0,0.3608]
[1729814740169,0.43688127,68242.0,68241.0,0.073302]
[1729814740369,0.3608,68242.0,68241.0,0.073302]
[1729814740679,0.43688127,68242.0,68241.0,0.073302]
[1729814741069,0.51296254,68242.0,68241.0,0.073302]
[1729814745178,0.58904381,68242.0,68236.0,0.3608]
[1729814745369,0.14938827,68237.0,68236.0,0.3608]
[1729814746383,0.14938827,68237.0,68233.0,0.073311]
[1729814746384,0.07331,68234.0,68233.0,0.073311]
[1729814746576,0.07608127,68236.0,68231.0,0.3608]
[1729814746577,0.073312,68232.0,68231.0,0.3608]
[1729814746772,0.14939327,68232.0,68231.0,0.3608]
[1729814747889,0.14939327,68232.0,68231.0,0.434113]
[1729814748377,0.07608127,68232.0,68231.0,0.434113]
[1729814750584,0.073311,68233.0,68232.0,0.073312]
[1729814750784,0.14939227,68233.0,68232.0,0.073312]
[1729814751181,0.14939327,68232.0,68227.0,0.106016]
[1729814751380,0.3608,68234.0,68227.0,0.0327]
[1729814751580,0.07608127,68230.0,68229.0,0.073315]
[1729814757089,0.07608127,68230.0,68227.0,0.0327]
[1729814757090,0.073312,68232.0,68231.0,0.073313]
[1729814757389,0.15907828,68232.0,68231.0,0.073313]
[1729814758290,0.15907828,68232.0,68227.0,0.0327]
[1729814758291,0.08576628,68232.0,68227.0,0.0327]
[1729814758591,0.073316,68229.0,68228.0,0.073316]
[1729814758889,0.14939727,68229.0,68228.0,0.073316]
[1729814763686,0.07608127,68228.0,68226.0,0.04378095]
[1729814763884,0.073317,68227.0,68226.0,0.1172592]
[1729814764689,0.073317,68227.0,68226.0,0.073317]
[1729814765693,0.073319,68225.0,68224.0,0.0439422]
[1729814765890,0.14940027,68225.0,68224.0,0.0439422]
[1729814766295,0.12325176,68225.0,68224.0,0.0439422]
[1729814766897,0.12325176,68225.0,68224.0,0.1172622]
[1729814767094,0.073314,68230.0,68229.0,0.073315]
[1729814767303,0.3608,68234.0,68229.0,0.04993276]
[1729814767495,0.073299,68244.0,68233.0,0.14979828]
[1729814767794,0.04993276,68242.0,68241.0,0.073302]
[1729814769394,0.05946729,68242.0,68241.0,0.073302]
[1729814770393,0.15890708,68242.0,68241.0,0.073302]
[1729814771296,0.073303,68240.0,68239.0,0.0314]
[1729814771501,0.073305,68238.0,68237.0,0.073306]
[1729814771696,0.14937655,68238.0,68237.0,0.073306]
[1729814774700,0.073305,68238.0,68237.0,0.073306]
[1729814774890,0.14937655,68238.0,68237.0,0.073306]
[1729814775097,0.2254481,68238.0,68237.0,0.073306]
[1729814775390,0.1521431,68238.0,68237.0,0.073306]
[1729814775601,0.2254481,68238.0,68237.0,0.073306]
[1729814777897,0.2254481,68238.0,68236.0,0.3608]
[1729814777898,0.073307,68237.0,68236.0,0.3608]
[1729814778108,0.073309,68235.0,68234.0,0.0323]
[1729814778304,0.434109,68235.0,68234.0,0.0323]
[1729814778806,0.14938055,68235.0,68234.0,0.0323]
[1729814779003,0.14938055,68235.0,68234.0,0.10561]
[1729814779197,0.14938055,68235.0,68234.0,0.1495522]
[1729814779399,0.14938055,68235.0,68234.0,0.10561]
[1729814780105,0.1521431,68235.0,68230.0,0.0439319]
[1729814780308,0.073314,68230.0,68229.0,0.073314]
[1729814783614,0.14938555,68230.0,68229.0,0.073314]
[1729814784419,0.15897678,68230.0,68229.0,0.073314]